bitfinex/quotes_SOLUSD_20251218
["timestamp","ask_amount","ask_price","bid_price","bid_amount"]
[1766097375046,4.02658021,119.79,119.75,2.78669916]
[1766097375343,4.02658021,119.79,119.75,4.35859954]
[1766097376551,0.68,119.78,119.74,13.16854446]
[1766097377545,0.68,119.78,119.74,74.26854446]
[1766097378545,0.68,119.78,119.74,65.45859954]
[1766097379039,11.11767296,119.78,119.74,65.45859954]
[1766097379866,10.43767296,119.78,119.75,13.16854446]
[1766097380071,10.43767296,119.8,119.75,13.16854446]
[1766097380072,0.68,119.79,119.75,13.16854446]
[1766097380374,15.4762725,119.79,119.75,13.16854446]
[1766097382659,0.68,119.81,119.77,13.16854446]
[1766097382972,32.98249317,119.81,119.77,13.16854446]
[1766097383872,22.54482021,119.81,119.77,13.16854446]
[1766097384047,8.34308711,119.86,119.78,4.35859954]
[1766097384244,23.22482021,119.84,119.8,13.16854446]
[1766097384468,0.68,119.84,119.8,13.16854446]
[1766097389559,0.68,119.84,119.8,8.80994492]
[1766097390673,0.68,119.84,119.8,13.16854446]
[1766097391660,0.68,119.84,119.8,8.80994492]
[1766097393171,0.68,119.84,119.8,13.16854446]
[1766097394767,14.7962725,119.86,119.82,4.35859954]
[1766097394768,11.11767296,119.86,119.82,4.35859954]
[1766097394974,11.11767296,119.86,119.83,4.35859954]
[1766097395178,0.68,119.86,119.83,4.35859954]
[1766097395374,0.68,119.86,119.84,4.35859954]
[1766097395882,0.68,119.86,119.83,13.16854446]
[1766097399687,0.68,119.86,119.82,23.9562725]
[1766097399865,0.68,119.86,119.82,28.31487204]
[1766097400067,0.68,119.86,119.82,14.7962725]
[1766097400266,0.68,119.86,119.82,9.16]
[1766097400669,0.68,119.85,119.82,9.16]
[1766097401366,0.68,119.85,119.81,9.16]
[1766097401578,0.68,119.84,119.81,9.16]
[1766097401982,0.68,119.84,119.81,13.51859954]
[1766097402794,23.13795378,119.85,119.82,8.80994492]
[1766097403090,23.13795378,119.89,119.84,4.35859954]
[1766097403295,0.72,119.88,119.84,4.35859954]
[1766097403874,0.72,119.9,119.87,4.35859954]
[1766097404078,0.72,119.9,119.87,13.16854446]
[1766097404707,0.72,119.9,119.87,17.527144]
[1766097406307,0.82,119.92,119.87,17.527144]
[1766097408504,0.82,119.92,119.87,13.16854446]
[1766097408704,0.72,119.91,119.87,13.16854446]
[1766097410820,0.72,119.91,119.88,4.35859954]
[1766097411193,0.72,119.89,119.84,5.03859954]
[1766097411406,0.72,119.89,119.85,0.68]
[1766097412315,9.16,119.88,119.85,0.68]
[1766097412519,9.88,119.88,119.85,0.68]
[1766097420914,0.72,119.88,119.85,0.68]
[1766097422620,0.72,119.88,119.85,0.62000287]
[1766097431026,57.35705864,119.9,119.85,0.62000287]
[1766097431027,44.65813945,119.9,119.85,0.62000287]
[1766097431234,0.71,119.89,119.85,4.35859954]
[1766097431414,0.71,119.89,119.86,0.66]
[1766097433121,6.64767296,119.9,119.86,0.66]
[1766097435128,0.72,119.89,119.86,0.66]
[1766097445847,6.64767296,119.9,119.86,0.66]
[1766097446049,0.72,119.89,119.86,0.66]
[1766097446344,7.36767296,119.9,119.86,0.66]
[1766097448648,0.72,119.89,119.86,0.66]
[1766097448828,0.72,119.89,119.83,2.78506773]
[1766097449018,0.72,119.88,119.84,0.66]
[1766097449652,0.72,119.88,119.85,0.66]
[1766097449948,7.36767296,119.9,119.86,0.66]
[1766097458265,8.80994492,119.91,119.9,8.80994492]
[1766097458558,0.1,119.92,119.9,11.59501265]
[1766097458758,0.72,119.95,119.9,11.59501265]
[1766097459130,0.72,119.95,119.9,23.1900253]
[1766097460046,0.72,119.95,119.91,2.78506773]
[1766097460769,0.72,119.95,119.9,20.40495757]
[1766097461062,0.72,119.95,119.91,2.78506773]
[1766097467566,0.72,119.95,119.9,81.50495757]
[1766097467741,0.72,119.95,119.9,72.69501265]
[1766097468064,0.72,119.95,119.9,79.04994492]
[1766097468466,0.69,119.94,119.9,79.04994492]
[1766097468968,0.69,119.94,119.9,61.1]
[1766097469557,0.69,119.94,119.89,9.14]
[1766097470451,10.43767296,119.97,119.9,8.80994492]
[1766097470654,0.69,119.96,119.92,2.78506773]
[1766097470868,8.43439467,119.99,119.9,8.80994492]
[1766097470869,0.1,119.99,119.95,2.78506773]
[1766097471168,1e-08,120.02,120.0,8.80994492]
[1766097471470,0.1,120.03,120.02,8.80994492]
[1766097471643,0.1,120.06,120.02,2.78506773]
[1766097471844,0.1,120.06,120.04,2.78506773]
[1766097472177,0.69,120.12,120.06,8.80994492]
[1766097472344,0.69,120.12,120.06,11.59501265]
[1766097472545,0.69,120.11,120.06,11.59501265]
[1766097473439,8.32307528,120.17,120.09,13.22274069]
[1766097473643,0.69,120.18,120.12,19.24761788]
[1766097473866,0.69,120.18,120.13,2.78506773]
[1766097474077,0.69,120.18,120.12,22.03268561]
[1766097474244,8.32307528,120.23,120.13,2.78506773]
[1766097474593,0.69,120.2,120.14,8.80994492]
[1766097474745,0.69,120.19,120.14,8.80994492]
[1766097475246,0.69,120.19,120.14,11.59501265]
[1766097475952,0.69,120.19,120.15,2.78506773]
[1766097476847,0.69,120.19,120.16,2.78506773]
[1766097478845,2.78506773,120.21,120.14,20.73501265]
[1766097479041,0.69,120.2,120.14,20.73501265]
[1766097479248,11.10338263,120.24,120.18,11.59501265]
[1766097479573,11.10108697,120.25,120.18,11.59501265]
[1766097479574,0.69,120.23,120.18,11.59501265]
[1766097479960,0.69,120.29,120.18,17.94994492]
[1766097480152,0.69,120.25,120.19,2.78506773]
[1766097480985,3.47506773,120.25,120.18,17.94994492]
[1766097481285,0.69,120.23,120.17,2.78506773]
[1766097481659,0.69,120.23,120.18,2.78506773]
[1766097482462,2.78506773,120.26,120.19,13.22274069]
[1766097482685,0.7,120.25,120.19,13.22274069]
[1766097483386,0.7,120.24,120.18,8.80994492]
[1766097483582,0.7,120.24,120.2,2.78506773]
[1766097484088,0.7,120.24,120.19,2.78506773]
[1766097484597,0.7,120.23,120.19,2.78506773]
[1766097484972,0.7,120.2,120.13,20.41010449]
[1766097485157,0.7,120.19,120.14,2.78506773]
[1766097485571,0.7,120.18,120.14,2.78506773]
[1766097485785,0.7,120.18,120.13,2.78506773]
[1766097485968,0.7,120.18,120.11,13.22274069]
[1766097486365,0.7,120.16,120.09,2.78506773]
[1766097486563,0.7,120.16,120.12,10.43767296]
[1766097489085,17.03798032,120.13,120.08,0.7]
[1766097489384,6.60030736,120.09,120.03,0.7]
[1766097489586,6.60030736,120.06,119.99,0.7]
[1766097489791,6.60030736,120.04,120.0,0.7]
[1766097490177,0.7,120.05,120.0,0.7]
[1766097490492,6.60030736,120.03,120.0,0.7]
[1766097490676,6.60030736,120.04,120.0,0.7]
[1766097492466,7.30030736,120.07,120.0,0.7]
[1766097492688,10.43767296,120.06,120.0,0.7]
[1766097492880,6.60030736,120.09,120.03,0.72]
[1766097493194,0.66,120.1,120.04,0.72]
[1766097493566,7.26030736,120.1,120.04,0.72]
[1766097495770,0.66,120.1,120.04,0.72]
[1766097495965,7.26030736,120.1,120.04,0.72]
[1766097498088,18.76315786,120.12,120.04,0.72]
[1766097498089,6.60030736,120.09,120.04,0.72]
[1766097498295,18.76287533,120.12,120.04,0.72]
[1766097498594,10.43767296,120.11,120.06,0.72]
[1766097499004,7.26030736,120.12,120.05,15.41025228]
[1766097499005,10.43767296,120.12,120.05,15.41025228]
[1766097499188,10.43767296,120.12,120.08,0.72]
[1766097499388,21.83578692,120.12,120.08,0.72]
[1766097499774,11.39811396,120.12,120.08,0.72]
[1766097501076,10.73811396,120.11,120.08,0.72]
[1766097502113,11.39811396,120.11,120.05,11.15767296]
[1766097502301,11.39811396,120.11,120.06,0.72]
[1766097502687,10.43767296,120.14,120.06,8.32904488]
[1766097502899,10.73811396,120.15,120.1,0.72]
[1766097503100,0.66,120.14,120.1,0.72]
[1766097504115,10.73811396,120.13,120.1,0.72]
[1766097504316,10.73811396,120.13,120.07,80.34761788]
[1766097504605,10.73811396,120.13,120.05,0.72]
[1766097504606,10.73811396,120.09,120.05,0.72]
[1766097504906,10.73811396,120.07,120.03,0.72]
[1766097505076,21.17578692,120.09,120.03,0.72]
[1766097505279,21.83578692,120.09,120.03,0.72]
[1766097505999,10.73811396,120.07,120.03,0.72]
[1766097507402,11.39811396,120.07,120.03,0.72]
[1766097509889,11.39811396,120.07,120.01,0.72]
[1766097509890,10.43767296,120.06,120.01,0.72]
[1766097510090,10.43767296,120.06,119.94,1.83375018]
[1766097510091,11.39811396,120.05,119.94,1.83375018]
[1766097510296,10.43767296,120.02,119.97,0.72]
[1766097510835,0.66,120.07,119.99,0.72]
[1766097511000,10.73811396,120.06,120.02,0.72]
[1766097511800,11.39811396,120.07,120.02,0.72]
[1766097511999,10.43767296,120.06,120.02,0.72]
[1766097513896,21.17578692,120.06,120.02,0.72]
[1766097514629,21.83578692,120.06,120.02,0.72]
[1766097514999,11.09767296,120.06,120.02,0.72]
[1766097515208,21.83578692,120.06,120.02,0.72]
[1766097517714,21.17578692,120.06,120.02,0.72]
[1766097517914,21.83578692,120.06,120.02,0.72]
[1766097519197,39.30519576,120.06,120.02,0.72]
[1766097519413,0.66,120.05,120.0,0.72]
[1766097520020,10.73811396,120.04,120.0,0.72]
[1766097520424,11.39811396,120.04,120.0,0.72]
[1766097520931,0.66,120.03,120.0,0.72]
[1766097521603,10.73811396,120.02,119.97,10.43767296]
[1766097521798,10.73811396,120.02,119.98,0.72]
[1766097522147,10.73811396,120.0,119.96,18.66994492]
[1766097522426,0.66,119.97,119.93,0.92]
[1766097522607,10.73811396,119.96,119.93,0.92]
[1766097522806,11.39811396,119.97,119.93,0.92]
[1766097523604,11.45811396,119.99,119.94,0.7]
[1766097525107,10.73811396,119.99,119.94,0.7]
[1766097525304,19.07214221,119.99,119.94,0.7]
[1766097525623,10.73811396,119.98,119.94,0.7]
[1766097527221,11.45811396,119.99,119.94,0.7]
[1766097529137,10.73811396,119.97,119.94,0.7]
[1766097529330,10.73811396,119.97,119.93,0.2]
[1766097529331,0.72,119.96,119.93,0.2]
[1766097529931,11.45811396,119.96,119.93,0.2]
[1766097531139,10.73811396,119.97,119.93,0.9]
[1766097531447,10.73811396,119.97,119.94,0.7]
[1766097532438,0.72,119.98,119.94,0.7]
[1766097532439,0.72,120.04,119.99,0.7]
[1766097532621,10.73811396,120.03,119.99,0.7]
[1766097537851,10.73811396,120.09,120.02,10.43767296]
[1766097538026,0.72,120.08,120.03,10.43767296]
[1766097540443,0.72,120.08,120.04,8.80994492]
[1766097540637,0.72,120.08,120.03,10.43767296]
[1766097543050,0.66,120.1,120.01,10.73811396]
[1766097543256,0.66,120.07,120.02,8.80994492]
[1766097543425,0.66,120.07,120.02,19.24761788]
[1766097546647,0.66,120.06,120.0,10.43767296]
[1766097546958,0.66,120.06,120.0,19.57767296]
[1766097547134,20.81651203,120.1,120.04,8.80994492]
[1766097547135,0.66,120.09,120.04,8.80994492]
[1766097547456,0.66,120.09,120.03,10.43767296]
[1766097547834,0.66,120.07,120.01,19.24761788]
[1766097548230,0.66,120.07,120.03,8.80994492]
[1766097550354,0.66,120.07,120.01,8.80994492]
[1766097552233,10.73811396,120.07,120.01,8.80994492]
[1766097552437,0.66,120.06,120.01,8.80994492]
[1766097553848,0.66,120.06,120.0,19.87811396]
[1766097555448,0.66,120.06,120.0,9.14]
[1766097556356,0.66,120.06,120.0,19.87811396]
[1766097557660,20.81818258,120.09,120.0,19.87811396]
[1766097557661,0.71,120.1,120.04,19.54805888]
[1766097557843,0.71,120.1,120.07,8.80994492]
[1766097558049,0.71,120.13,120.07,8.80994492]
[1766097558439,0.71,120.12,120.07,8.80994492]
[1766097558851,0.71,120.11,120.06,8.80994492]
[1766097559448,0.71,120.11,120.05,9.14]
[1766097561345,0.71,120.11,120.05,15.74838442]
[1766097561692,0.81,120.16,120.11,8.80994492]
[1766097561845,0.81,120.16,120.11,17.94994492]
[1766097563266,0.81,120.16,120.11,17.88994778]
[1766097564054,0.81,120.16,120.11,9.14]
[1766097565276,0.71,120.15,120.11,9.14]
[1766097565867,15.03079032,120.16,120.11,9.14]
[1766097566065,0.71,120.15,120.11,15.74838442]
[1766097566663,0.71,120.15,120.11,9.14]
[1766097566854,0.71,120.15,120.11,15.74838442]
[1766097567563,0.71,120.15,120.11,9.14]
[1766097568773,0.71,120.15,120.11,15.74838442]
[1766097570474,0.71,120.15,120.11,9.14]
[1766097575683,0.71,120.14,120.09,9.14]
[1766097575878,0.71,120.13,120.07,6.60838442]
[1766097576177,0.71,120.13,120.07,15.74838442]
[1766097576873,0.71,120.13,120.07,9.14]
[1766097577076,0.71,120.12,120.06,25.8560023]
[1766097577291,0.71,120.12,120.06,34.9960023]
[1766097580581,0.71,120.11,120.06,28.38761788]
[1766097582469,0.71,120.11,120.06,89.48761788]
[1766097583488,0.71,120.11,120.06,92.26306798]
[1766097584068,0.71,120.11,120.07,2.7754501]
[1766097586098,0.71,120.11,120.06,92.26306798]
[1766097588286,0.71,120.11,120.06,13.21312306]
[1766097588486,0.71,120.11,120.06,22.35312306]
[1766097592905,0.71,120.11,120.06,19.57767296]
[1766097593106,0.71,120.11,120.06,22.35312306]
[1766097596300,0.71,120.11,120.06,19.57767296]
[1766097598214,0.68,120.13,120.06,22.35312306]
[1766097598416,0.68,120.12,120.07,2.7754501]
[1766097598626,0.68,120.12,120.06,22.35312306]
[1766097598927,0.68,120.11,120.06,19.57767296]
[1766097599518,0.68,120.1,120.06,19.57767296]
[1766097599813,0.68,120.08,120.02,11.9154501]
[1766097600108,0.68,120.08,120.02,22.35312306]
[1766097600308,2.7754501,120.09,120.0,9.14]
[1766097600309,0.68,120.06,120.0,9.14]
[1766097600493,0.68,120.05,120.0,9.14]
[1766097600811,0.68,120.04,119.99,9.14]
[1766097601012,0.68,120.04,119.97,8.33504627]
[1766097601013,0.68,120.03,119.97,13.21312306]
[1766097601314,0.68,119.99,119.93,2.9754501]
[1766097601517,0.68,119.99,119.94,11.58539502]
[1766097601807,0.67,120.02,119.97,8.80994492]
[1766097607317,2.7754501,120.11,120.02,8.80994492]
[1766097607493,0.67,120.1,120.05,8.80994492]
[1766097607692,0.67,120.1,120.05,22.02306798]
[1766097607920,0.67,120.1,120.05,19.24761788]
[1766097608303,0.67,120.09,120.05,19.24761788]
[1766097609817,0.67,120.08,120.04,8.80994492]
[1766097611512,0.67,120.08,120.03,9.14]
[1766097612108,0.67,120.07,120.03,9.14]
[1766097612819,0.67,120.06,120.0,6.6103916]
[1766097612997,0.67,120.06,120.02,8.80994492]
[1766097614039,0.67,120.06,120.0,24.56033652]
[1766097614705,0.67,120.06,120.01,6.6103916]
[1766097615027,0.67,120.06,120.0,24.56033652]
[1766097616039,0.77,120.16,120.04,8.80994492]
[1766097616345,0.67,120.14,120.09,10.43767296]
[1766097617426,0.67,120.13,120.09,10.43767296]
[1766097627532,0.67,120.12,120.06,69.90994492]
[1766097627713,0.67,120.12,120.06,80.64298559]
[1766097628510,0.67,120.12,120.06,69.90994492]
[1766097628716,0.67,120.12,120.06,80.64298559]
[1766097629539,0.67,120.12,120.06,74.24597314]
[1766097630830,0.67,120.12,120.06,69.90994492]
[1766097631046,0.67,120.12,120.06,74.24597314]
[1766097631925,0.67,120.12,120.06,69.90994492]
[1766097632331,0.67,120.12,120.06,74.24597314]
[1766097632532,0.67,120.12,120.06,8.80994492]
[1766097637154,5.00602822,120.12,120.06,8.80994492]
[1766097637450,0.67,120.11,120.06,8.80994492]
[1766097643755,8.3257774,120.11,120.02,9.14]
[1766097643932,0.66,120.06,120.02,9.14]
[1766097644131,0.66,120.05,120.02,9.14]
[1766097644343,0.66,120.05,119.99,75.87370118]
[1766097644549,0.66,120.05,119.99,85.01370118]
[1766097644754,0.66,120.05,120.0,8.80994492]
[1766097644938,0.66,120.05,119.99,13.47602822]
[1766097645139,0.66,120.04,119.99,9.14]
[1766097645634,4.33602822,120.04,119.99,9.14]
[1766097645830,0.66,120.03,119.99,9.14]
[1766097646749,27.90687398,120.06,119.99,9.14]
[1766097646945,0.66,120.04,119.99,9.14]
[1766097651579,0.66,120.03,119.99,9.14]
[1766097651752,0.66,120.03,119.96,71.53767296]
[1766097651753,4.33602822,120.03,119.97,8.80994492]
[1766097651946,0.66,120.02,119.97,8.80994492]
[1766097653750,0.66,120.02,119.96,19.57767296]
[1766097653952,0.66,120.01,119.96,19.57767296]
[1766097654360,0.66,120.01,119.96,23.91370118]
[1766097656045,11.09767296,120.03,119.97,13.14597314]
[1766097656269,0.66,120.02,119.97,13.14597314]
[1766097656454,10.43767296,120.05,119.99,4.33602822]
[1766097656655,0.66,120.04,119.98,4.33602822]
[1766097658037,0.66,120.03,119.97,13.14597314]
[1766097661767,0.66,120.03,119.97,22.28597314]
[1766097662293,24.37784208,120.07,119.97,22.28597314]
[1766097662294,0.68,120.07,120.01,13.14597314]
[1766097662449,0.68,120.07,120.01,22.28597314]
[1766097663467,0.68,120.07,120.01,17.94994492]
[1766097664462,0.68,120.06,120.01,17.94994492]
[1766097665756,0.68,120.06,120.01,22.28597314]
[1766097670990,0.68,120.06,120.02,4.33602822]
[1766097672782,0.68,120.06,120.01,22.28597314]
[1766097674871,0.68,120.06,120.02,4.33602822]
[1766097675790,0.68,120.06,120.01,22.28597314]
[1766097677689,5.02602822,120.1,120.04,10.43767296]
[1766097677892,0.69,120.09,120.04,14.77370118]
[1766097678387,4.33602822,120.1,120.04,14.77370118]
[1766097678569,0.69,120.09,120.04,23.91370118]
[1766097678967,17.94994492,120.13,120.08,4.33602822]
[1766097678968,9.14,120.13,120.08,4.33602822]
[1766097679170,0.1,120.16,120.15,19.24761788]
[1766097679395,0.1,120.19,120.15,23.5836461]
[1766097679590,0.1,120.19,120.16,4.33602822]
[1766097679815,0.1,120.19,120.15,23.5836461]
[1766097681788,0.79,120.19,120.16,4.33602822]
[1766097682390,0.1,120.19,120.16,4.33602822]
[1766097682994,0.1,120.19,120.15,23.5836461]
[1766097683497,0.79,120.19,120.15,22.01855617]
[1766097683899,0.79,120.19,120.16,2.77093829]
[1766097684276,0.79,120.19,120.15,22.01855617]
[1766097684703,0.79,120.19,120.16,2.77093829]
[1766097686977,0.79,120.19,120.17,2.77093829]
[1766097686978,0.1,120.19,120.17,2.77093829]
[1766097687176,10.43767296,120.23,120.17,2.77093829]
[1766097687177,0.69,120.23,120.18,22.01855617]
[1766097687500,0.1,120.24,120.22,2.77093829]
[1766097688085,0.1,120.24,120.22,11.58088321]
[1766097688296,0.1,120.24,120.21,9.14]
[1766097688692,0.1,120.24,120.21,11.91093829]
[1766097688997,0.1,120.24,120.22,2.77093829]
[1766097689197,0.69,120.25,120.22,11.58088321]
[1766097689417,0.69,120.29,120.22,8.80994492]
[1766097689578,0.69,120.28,120.23,2.77093829]
[1766097691204,0.69,120.28,120.22,20.72088321]
[1766097691705,0.69,120.28,120.23,11.58088321]
[1766097692079,0.69,120.28,120.24,2.77093829]
[1766097693309,0.69,120.28,120.23,11.58088321]
[1766097694910,0.69,120.28,120.23,8.80994492]
[1766097695316,0.69,120.28,120.23,11.58088321]
[1766097695906,0.69,120.28,120.23,8.80994492]
[1766097697020,0.69,120.35,120.27,8.80994492]
[1766097697190,0.69,120.33,120.27,22.01855617]
[1766097697389,0.69,120.32,120.27,22.01855617]
[1766097697589,0.69,120.32,120.28,2.77093829]
[1766097698005,0.69,120.35,120.29,8.80994492]
[1766097698212,0.69,120.34,120.28,11.58088321]
[1766097698491,0.69,120.33,120.28,11.58088321]
[1766097699011,0.69,120.33,120.28,8.80994492]
[1766097700113,0.69,120.32,120.28,8.80994492]
[1766097700297,0.69,120.32,120.27,10.43767296]
[1766097700811,0.69,120.32,120.27,8.80994492]
[1766097700997,0.69,120.3,120.24,2.77093829]
[1766097701186,0.69,120.3,120.25,8.80994492]
[1766097703202,0.69,120.3,120.25,11.58088321]
[1766097703894,0.69,120.3,120.25,8.80994492]
[1766097704713,11.083509,120.3,120.23,10.43767296]
[1766097704891,11.083509,120.3,120.22,2.77093829]
[1766097704892,0.68,120.28,120.22,2.77093829]
[1766097707424,0.68,120.27,120.22,2.77093829]
[1766097708314,0.68,120.27,120.21,19.24761788]
[1766097708513,0.68,120.27,120.22,2.77093829]
[1766097708813,0.68,120.27,120.21,22.01855617]
[1766097709127,2.77093829,120.26,120.19,2.77093829]
[1766097709322,0.68,120.24,120.18,2.77093829]
[1766097709626,0.68,120.21,120.15,2.77093829]
[1766097709829,0.68,120.21,120.14,2.77093829]
[1766097709830,0.68,120.2,120.14,2.77093829]
[1766097710128,0.68,120.2,120.14,10.43767296]
[1766097710305,13.20861125,120.19,120.12,2.77093829]
[1766097710625,13.20861125,120.19,120.11,2.77093829]
[1766097710626,0.68,120.17,120.11,2.77093829]
[1766097710803,0.59,120.15,120.05,0.83298625]
[1766097711003,0.59,120.14,120.09,0.7]
[1766097711215,0.59,120.14,120.07,2.77093829]
[1766097711216,0.59,120.13,120.07,2.77093829]
[1766097711507,7.19697018,120.13,120.07,0.7]
[1766097711833,7.19697018,120.13,120.06,6.60697018]
[1766097711834,0.59,120.11,120.06,0.7]
[1766097712600,0.59,120.11,120.06,6.60697018]
[1766097712806,6.60697018,120.13,120.07,0.7]
[1766097713013,0.59,120.15,120.09,0.7]
[1766097713315,7.19697018,120.15,120.09,0.7]
[1766097713626,7.19697018,120.13,120.07,10.43767296]
[1766097713829,6.60697018,120.11,120.07,0.7]
[1766097714025,6.60697018,120.11,120.03,7.30697018]
[1766097714026,0.59,120.09,120.03,7.30697018]
[1766097714229,0.59,120.08,120.03,0.7]
[1766097714729,7.19697018,120.08,120.03,0.7]
[1766097715117,0.59,120.07,120.02,0.2]
[1766097715421,0.59,120.06,120.02,0.2]
[1766097715822,0.59,120.05,120.02,0.2]
[1766097719750,6.60697018,120.04,120.02,0.2]
[1766097719923,6.99697018,120.04,120.01,0.2]
[1766097721244,6.60697018,120.03,120.01,0.2]
[1766097721524,6.79697018,120.03,119.97,11.13767296]
[1766097722112,6.79697018,120.03,119.97,11.15767296]
[1766097722313,6.79697018,120.03,119.98,0.72]
[1766097723655,6.79697018,120.03,119.94,20.84215941]
[1766097723656,25.56887415,119.99,119.91,0.72]
[1766097723821,6.79697018,119.98,119.92,0.72]
[1766097724016,0.19,119.98,119.93,0.92]
[1766097724619,6.79697018,119.98,119.93,0.92]
[1766097725021,0.19,119.98,119.93,0.92]
[1766097725221,6.60697018,119.98,119.93,0.92]
[1766097725434,0.19,119.97,119.93,0.92]
[1766097725825,15.13261145,119.97,119.93,0.2]
[1766097726217,8.52564127,119.97,119.93,0.2]
[1766097726619,34.51875897,119.99,119.93,0.92]
[1766097726935,0.19,119.98,119.93,0.92]
[1766097727347,0.19,120.0,119.94,6.60697018]
[1766097727643,0.19,120.0,119.95,7.32697018]
[1766097727939,0.19,120.0,119.95,0.72]
[1766097728156,25.03,120.05,119.95,0.72]
[1766097728157,9.14,120.06,120.0,0.72]
[1766097728325,26.37464314,120.06,120.0,0.72]
[1766097728642,6.79697018,120.05,120.0,0.72]
[1766097729424,15.12714458,120.05,120.0,0.72]
[1766097730126,6.79697018,120.04,119.98,0.72]
[1766097730325,0.19,120.03,119.98,0.72]
[1766097732527,6.79697018,120.03,119.98,0.72]
[1766097732735,15.12839752,120.03,119.98,0.72]
[1766097733043,9.14,120.02,119.98,0.72]
[1766097736348,9.33,120.02,119.96,15.4169151]
[1766097736555,9.33,120.02,119.97,0.72]
[1766097738046,15.93697018,120.02,119.97,0.72]
[1766097738249,6.60697018,120.01,119.97,0.72]
[1766097738449,6.60697018,120.0,119.95,10.43767296]
[1766097738754,6.79697018,120.0,119.96,0.72]
[1766097739456,6.60697018,120.0,119.96,0.72]
[1766097739626,6.79697018,120.0,119.96,0.72]
[1766097742948,6.60697018,120.0,119.96,0.72]
[1766097743329,10.7595633,120.0,119.96,0.72]
[1766097744532,19.09300015,120.0,119.93,10.9595633]
[1766097744732,10.7595633,120.01,119.96,0.72]
[1766097744939,9.14,120.0,119.96,0.72]
[1766097746451,19.8995633,120.0,119.96,0.72]
[1766097748641,9.14,120.0,119.96,0.72]
[1766097749755,9.33,120.0,119.96,0.72]
[1766097752244,20.0895633,120.0,119.96,0.72]
[1766097754437,9.33,120.0,119.96,0.72]
[1766097756260,9.14,120.0,119.96,0.72]
[1766097757376,10.62767296,120.02,119.96,0.72]
[1766097757546,9.14,120.01,119.97,0.72]
[1766097762535,9.14,120.03,119.98,0.72]
[1766097764445,9.14,120.03,119.99,0.66]
[1766097765668,9.33,120.03,119.99,0.66]
[1766097769248,0.19,120.1,120.04,0.66]
[1766097769445,0.19,120.1,120.06,0.66]
[1766097769766,0.19,120.11,120.06,0.66]
[1766097771868,14.77969986,120.12,120.06,0.66]
[1766097772072,9.14,120.12,120.06,0.66]
[1766097773275,12.85637404,120.13,120.06,0.66]
[1766097773456,9.14,120.12,120.06,0.66]
[1766097774469,9.33,120.12,120.06,0.66]
[1766097777870,9.33,120.12,120.06,5.0020269]
[1766097778071,9.33,120.12,120.07,0.66]
[1766097783087,0.19,120.12,120.07,0.66]
[1766097783385,9.33,120.12,120.07,0.66]
[1766097784780,19.67767296,120.14,120.07,0.66]
[1766097784984,24.01969986,120.14,120.07,0.66]
[1766097785284,9.14,120.13,120.08,0.68]
[1766097785881,14.87969986,120.14,120.08,0.68]
[1766097786185,9.14,120.13,120.08,0.68]
[1766097786887,15.06969986,120.14,120.08,0.68]
[1766097787189,9.14,120.13,120.08,0.68]
[1766097787373,4.6320269,120.14,120.08,0.68]
[1766097787577,13.7720269,120.14,120.08,0.68]
[1766097789790,4.6320269,120.14,120.08,0.68]
[1766097789991,13.7720269,120.14,120.08,0.68]
[1766097793594,9.43,120.14,120.08,0.68]